bitfinex-derivatives/quotes_ETHF0:USTF0_20241129
["timestamp","ask_amount","ask_price","bid_price","bid_amount"]
[1732886440497,0.27691,3609.9,3609.8,0.27692]
[1732886440993,0.27691,3609.9,3609.8,3.2078]
[1732886441190,3.18478645,3610.3,3609.5,40.8]
[1732886441397,0.27694,3609.6,3609.5,44.0078]
[1732886441601,0.27694,3609.6,3609.5,44.28474]
[1732886441992,1.57507,3610.1,3609.6,0.27693]
[1732886441993,0.27694,3609.7,3609.6,0.27693]
[1732886442194,0.8828,3610.1,3609.5,44.0078]
[1732886442492,23.27771922,3613.0,3609.5,44.0078]
[1732886442493,3.2078,3610.5,3609.5,44.0078]
[1732886442698,0.27694,3609.6,3609.5,44.28474]
[1732886444589,0.27694,3609.6,3609.5,44.0078]
[1732886444795,0.27694,3609.6,3609.2,0.9288]
[1732886444796,0.27696,3609.3,3609.2,0.9288]
[1732886445000,0.69231,3609.8,3609.2,1.1088]
[1732886445300,3.18478645,3609.9,3609.2,1.1088]
[1732886445301,0.27696,3609.4,3609.3,0.27695]
[1732886445501,0.27695,3609.5,3609.4,0.27694]
[1732886445702,1.086,3610.2,3609.2,4.1366]
[1732886445897,0.27694,3609.6,3609.5,0.27694]
[1732886446100,0.27694,3609.6,3609.5,0.72694]
[1732886446404,0.27693,3609.7,3609.6,0.27693]
[1732886447099,0.27693,3609.7,3609.6,3.48473]
[1732886447305,0.27693,3609.7,3609.6,3.48474]
[1732886447501,0.69225,3610.1,3609.0,4.1755]
[1732886447502,3.2078,3610.1,3609.0,4.1755]
[1732886447804,0.277,3608.8,3608.7,1.1852]
[1732886448000,0.69239,3609.4,3608.9,0.27698]
[1732886448001,0.27699,3609.0,3608.9,0.27698]
[1732886448901,0.27698,3609.1,3609.0,0.27697]
[1732886449298,0.27698,3609.1,3608.7,0.9082]
[1732886449502,0.277,3609.0,3608.9,0.27699]
[1732886449704,1.912,3609.4,3608.7,0.9082]
[1732886449907,0.27699,3609.1,3609.0,0.27698]
[1732886450408,0.277,3608.9,3608.8,0.27699]
[1732886451102,0.277,3608.9,3608.8,41.07699]
[1732886452110,0.277,3608.9,3608.8,40.8]
[1732886452301,0.277,3608.9,3608.2,0.69261]
[1732886452302,0.27704,3608.4,3608.3,0.27703]
[1732886452707,0.27704,3608.3,3608.2,3.48484]
[1732886453008,0.27704,3608.3,3608.2,4.47484]
[1732886453205,0.27704,3608.3,3608.2,4.1978]
[1732886453406,0.27704,3608.3,3608.2,3.2078]
[1732886454002,3.46182645,3608.3,3608.2,3.2078]
[1732886454208,0.27707,3607.9,3607.8,4.28180426]
[1732886454421,0.27708,3607.7,3607.6,3.48489]
[1732886455114,0.27708,3607.7,3607.6,3.2078]
[1732886456005,3.18478645,3607.9,3607.2,4.1774]
[1732886456201,0.27711,3607.4,3607.3,0.27711]
[1732886456398,0.27711,3607.3,3607.2,4.1774]
[1732886456805,0.27711,3607.3,3607.2,3.2078]
[1732886457811,0.27715,3606.8,3606.7,1.20376]
[1732886458012,0.27718,3606.6,3606.5,0.27718]
[1732886458209,0.27718,3606.5,3606.4,3.48498]
[1732886458409,0.27718,3606.5,3606.4,3.79498]
[1732886458610,0.27717,3606.6,3606.5,0.27717]
[1732886458812,0.27717,3606.6,3606.5,0.58717]
[1732886460015,0.27717,3606.6,3606.5,0.31]
[1732886460402,0.27717,3606.6,3606.5,40.8]
[1732886460731,3.18478645,3606.7,3606.0,3.2078]
[1732886460908,0.27721,3606.1,3606.0,3.48501]
[1732886461104,0.27721,3606.1,3606.0,3.2078]
[1732886461806,0.27721,3606.1,3605.9,0.27722]
[1732886462005,1.56606,3606.5,3605.9,0.18]
[1732886462206,0.693,3606.2,3605.5,3.2078]
[1732886462415,0.27724,3605.6,3605.5,3.2078]
[1732886463309,0.8744,3606.1,3605.5,3.2078]
[1732886463515,0.27721,3606.1,3606.0,0.27721]
[1732886463710,0.2772,3606.3,3606.2,0.2772]
[1732886463908,0.8828,3606.6,3606.2,0.2772]
[1732886464117,0.2772,3606.2,3606.0,3.48501]
[1732886464312,0.2772,3606.2,3606.1,41.07721]
[1732886464513,0.27718,3606.4,3606.3,0.27719]
[1732886464804,0.8828,3606.6,3606.1,40.8]
[1732886465010,0.27719,3606.3,3606.1,40.8]
[1732886465411,0.8828,3606.6,3606.2,0.27719]
[1732886465610,0.27716,3606.7,3606.4,3.48498]
[1732886465811,0.9148,3607.0,3606.4,3.4278]
[1732886465812,0.27715,3606.9,3606.4,3.4278]
[1732886466012,0.27715,3606.9,3606.7,0.27716]
[1732886466212,0.27715,3606.8,3606.4,3.2078]
[1732886466516,0.27716,3606.7,3606.4,7.0678]
[1732886466721,0.27716,3606.7,3606.5,0.27717]
[1732886467617,0.27717,3606.6,3606.5,0.27717]
[1732886467924,0.9148,3607.0,3606.4,3.2078]
[1732886468218,0.27717,3606.6,3606.5,0.27717]
[1732886469117,0.9148,3607.0,3606.4,3.2078]
[1732886469318,0.9148,3607.0,3602.2,13.87554]
[1732886469319,3.18478645,3606.7,3605.9,3.2078]
[1732886469511,3.18478645,3606.7,3606.1,0.2772]
[1732886469512,0.27718,3606.5,3606.1,0.2772]
[1732886469712,0.27721,3606.1,3606.0,0.27721]
[1732886471217,0.8741,3606.6,3605.9,3.2078]
[1732886471515,0.69287,3606.9,3606.3,3.2078]
[1732886471716,3.18478645,3606.7,3606.1,3.2078]
[1732886472021,0.2772,3606.2,3606.1,3.2078]
[1732886472409,0.27722,3606.0,3605.9,0.27722]
[1732886472614,0.69292,3606.7,3605.7,3.2078]
[1732886472615,0.2772,3606.2,3606.1,0.2772]
[1732886472817,0.2772,3606.2,3606.1,3.485]
[1732886473724,0.2772,3606.2,3606.1,3.2078]
[1732886474119,0.9112,3606.8,3606.1,3.2078]
[1732886474321,0.27715,3606.9,3606.8,0.27714]
[1732886474527,1.087,3607.3,3606.5,3.2078]
[1732886474819,0.27715,3606.9,3606.8,0.27714]
[1732886475423,1.087,3607.3,3606.5,3.2078]
[1732886475614,1.087,3607.3,3606.5,8.27074]
[1732886475815,1.087,3607.3,3606.8,0.27715]
[1732886475816,0.27715,3606.9,3606.8,0.27715]
[1732886476016,1.15063,3607.2,3607.1,0.27713]
[1732886477220,0.8735,3607.2,3606.5,3.2078]
[1732886477520,0.27713,3607.1,3607.0,0.27713]
[1732886477915,0.8735,3607.2,3606.5,3.2078]
[1732886478317,0.27716,3606.7,3606.6,0.27716]
[1732886478819,1.56631,3607.2,3606.5,3.2078]
[1732886479024,1.56631,3607.2,3606.7,0.27715]
[1732886479025,0.27716,3606.8,3606.7,0.27715]
[1732886479220,1.56631,3607.2,3606.5,3.2078]
[1732886479421,0.27717,3606.6,3606.5,3.48497]
[1732886479714,0.27717,3606.6,3606.5,3.48498]
[1732886479912,0.27717,3606.7,3606.6,0.27716]
[1732886480119,3.18478645,3606.9,3606.5,3.2078]
[1732886480427,0.8735,3607.2,3606.5,3.2078]
[1732886480722,0.27716,3606.8,3606.7,0.27715]
[1732886480919,0.27717,3606.7,3606.6,0.27716]
[1732886481127,0.8735,3607.2,3605.7,3.2078]
[1732886481128,3.18478645,3606.9,3605.7,3.2078]
[1732886481323,0.27722,3606.0,3605.9,0.27722]
[1732886481528,0.27719,3606.3,3605.9,0.27722]
[1732886481828,0.27722,3606.0,3605.9,0.27722]
[1732886482027,0.27723,3605.9,3605.8,0.27723]
[1732886482328,0.9394,3606.2,3605.7,3.2078]
[1732886482329,0.27723,3605.8,3605.7,3.2078]
[1732886482529,0.27723,3605.8,3605.7,3.48504]
[1732886482830,0.27723,3605.8,3605.7,3.2078]
[1732886483627,0.69309,3605.8,3605.2,40.8]
[1732886483827,0.27727,3605.4,3605.3,0.27726]
[1732886484028,0.27726,3605.5,3605.4,0.27725]
[1732886485329,0.27727,3605.3,3605.2,41.07727]
[1732886485528,0.27727,3605.3,3605.2,41.48727]
[1732886485931,0.27727,3605.3,3605.1,4.1218]
[1732886485932,0.27728,3605.2,3604.7,0.27731]
[1732886486124,0.27731,3604.8,3604.7,0.71731]
[1732886486326,3.46206645,3605.2,3604.4,1.23143]
[1732886486527,0.27733,3604.5,3604.4,1.23143]
[1732886486735,0.27733,3604.5,3604.4,0.9541]
[1732886487529,0.27733,3604.5,3604.4,1.23144]
[1732886487735,0.27733,3604.5,3604.4,0.9541]
[1732886487941,0.27733,3604.5,3604.4,1.23144]
[1732886488139,0.27735,3604.2,3604.1,3.2078]
[1732886488344,0.27739,3603.7,3603.6,3.2078]
[1732886488833,3.18478645,3603.8,3603.4,0.9191]
[1732886488834,0.2774,3603.6,3603.4,0.9191]
[1732886489141,0.2774,3603.6,3603.4,1.19651]
[1732886489443,0.27741,3603.5,3603.4,1.19651]
[1732886489643,0.27741,3603.5,3603.4,0.9191]
[1732886489843,3.18478645,3603.8,3603.3,40.8]
[1732886490045,0.27741,3603.5,3603.3,40.8]
[1732886490237,4.09378645,3603.8,3603.3,41.07742]
[1732886490635,0.27741,3603.5,3603.3,40.8]
[1732886491144,0.27741,3603.4,3603.3,40.8]
[1732886491346,0.27741,3603.5,3603.2,0.27742]
[1732886491641,0.27741,3603.5,3603.3,0.27742]
[1732886491845,0.27741,3603.5,3603.4,40.8]
[1732886492040,4.08412837,3603.8,3603.3,0.27742]
[1732886492247,0.27742,3603.4,3603.1,0.27743]
[1732886492441,5.43451837,3603.8,3603.1,3.2078]
[1732886492646,0.2774,3603.7,3603.5,0.2774]
[1732886492842,5.15712837,3603.8,3603.2,40.8]
[1732886493345,5.15712837,3603.8,3603.6,0.27739]
[1732886493546,0.27739,3603.7,3603.2,40.8]
[1732886493845,0.2774,3603.7,3603.5,0.27741]
[1732886494148,0.27733,3604.5,3604.3,0.27734]
[1732886494545,3.18478645,3605.0,3604.3,3.4878]
[1732886494748,3.18478645,3605.0,3604.9,0.2773]
[1732886495346,3.18478645,3605.0,3604.5,40.8]
[1732886495646,3.18478645,3605.0,3604.9,0.2773]
[1732886495848,3.18478645,3605.4,3605.2,0.27727]
[1732886496148,3.46204645,3605.4,3604.7,3.2078]
[1732886496448,3.2078,3605.6,3605.5,0.27725]
[1732886496643,0.27723,3605.8,3605.7,0.27723]
[1732886497039,4.25778645,3606.2,3605.5,3.2078]
[1732886497239,0.27724,3605.7,3605.6,0.27724]
[1732886497647,4.25778645,3606.2,3605.5,3.2078]
[1732886498041,0.27722,3605.9,3605.8,0.27723]
[1732886498246,3.46228441,3606.2,3605.5,3.2078]
[1732886498443,0.27723,3605.9,3605.8,0.27723]
[1732886498649,0.9479,3606.5,3605.6,0.69312]
[1732886498846,0.9479,3606.5,3605.5,3.2078]
[1732886498847,3.18478645,3606.2,3605.5,3.2078]
[1732886499042,0.27724,3605.7,3605.6,0.27724]
[1732886499246,4.25778645,3605.8,3604.9,0.8773]
[1732886499455,0.27727,3605.3,3605.2,0.27727]
[1732886499647,0.27728,3605.2,3605.1,0.27728]
[1732886500350,0.27728,3605.2,3604.9,0.8773]
[1732886500351,0.27725,3605.5,3605.4,0.27726]
[1732886500643,0.9312,3605.6,3605.0,3.2078]
[1732886500845,0.27728,3605.2,3605.1,0.27728]
[1732886501041,0.9312,3605.6,3605.2,0.27727]
[1732886501042,0.27727,3605.3,3605.2,0.27727]
[1732886501443,0.9312,3605.6,3605.0,3.2078]
[1732886501752,0.9312,3605.6,3605.0,3.5178]
[1732886502047,0.27727,3605.3,3605.2,0.27727]
[1732886502647,0.27725,3605.5,3605.0,3.48508]
[1732886502847,0.27727,3605.3,3605.2,0.27727]
[1732886503350,0.27728,3605.2,3605.1,0.27728]
[1732886503556,0.27727,3605.4,3605.3,0.27726]
[1732886504255,0.27725,3605.5,3605.2,0.27727]
[1732886504456,0.9312,3605.6,3605.3,0.27727]
[1732886504749,0.27726,3605.4,3605.3,0.27726]
[1732886504953,0.27726,3605.4,3605.0,3.2078]
[1732886504954,0.9312,3605.6,3605.0,3.2078]
[1732886505152,0.27726,3605.5,3605.4,0.27725]
[1732886506148,0.27726,3605.4,3605.3,0.27726]
[1732886506354,0.27727,3605.3,3605.2,0.27727]
[1732886506752,0.27727,3605.3,3605.0,3.2078]
[1732886506753,0.9312,3605.6,3605.0,3.2078]
[1732886506956,0.27726,3605.4,3605.3,0.27726]
[1732886508849,0.8984,3605.7,3605.0,3.2078]
[1732886509051,0.27722,3606.0,3605.9,0.27721]
[1732886510457,0.27722,3605.9,3605.8,3.48502]
[1732886510657,0.27724,3605.7,3605.6,0.27724]
[1732886510958,0.27724,3605.7,3605.6,0.58724]
[1732886511156,0.27723,3605.9,3605.8,0.27722]
[1732886511457,8.60118128,3606.2,3605.5,0.9089]
[1732886511655,0.27728,3605.2,3605.1,0.27728]
[1732886511966,0.27729,3605.0,3604.9,0.8773]
[1732886512256,0.27731,3604.7,3604.6,3.48512]
[1732886512650,0.27731,3604.7,3604.6,0.27732]
[1732886512850,3.18478645,3605.0,3604.4,0.8801]
[1732886513051,0.27733,3604.6,3604.5,0.27732]
[1732886513655,0.27732,3604.7,3604.6,0.27732]
[1732886514261,0.27734,3604.3,3604.2,3.48515]
[1732886514957,3.18478645,3604.6,3604.0,0.9089]
[1732886515261,0.27736,3604.1,3604.0,0.9089]
[1732886515761,0.27737,3604.0,3603.9,1.22087]
[1732886516057,0.27737,3604.0,3603.9,0.27737]
[1732886516757,0.8986,3604.4,3603.5,40.8]
[1732886516954,0.2774,3603.6,3603.5,0.84]
[1732886517657,6.39258645,3604.2,3603.5,0.84]
[1732886517658,6.39258645,3604.2,3603.5,4.0478]
[1732886517862,0.2774,3603.7,3603.6,0.27739]
[1732886518066,0.27739,3603.8,3603.7,0.27738]
[1732886518562,0.27738,3603.9,3603.6,0.2774]
[1732886518862,0.27738,3603.9,3603.8,0.27738]
[1732886520465,0.27739,3603.8,3603.7,0.27738]
[1732886520858,0.2774,3603.6,3603.5,3.2078]
[1732886521060,0.2774,3603.6,3603.5,3.6578]
[1732886521458,0.2774,3603.6,3603.5,0.45]
[1732886522958,1.087,3604.0,3603.5,0.45]
[1732886523163,3.18478645,3604.2,3603.5,0.45]
[1732886523468,3.18478645,3604.2,3603.2,1.60226]
[1732886523668,0.27738,3603.9,3603.8,0.27738]
[1732886524269,0.27738,3603.9,3603.8,40.8]
[1732886524467,0.27742,3603.4,3603.3,0.27742]
[1732886524670,0.2774,3603.7,3603.6,0.27739]
[1732886524871,0.2774,3603.7,3603.6,41.07739]
[1732886525071,3.18478645,3604.2,3603.2,0.9087]
[1732886525268,0.2774,3603.6,3603.5,0.2774]
[1732886525666,0.2774,3603.6,3603.5,41.0774]
[1732886526173,0.2774,3603.6,3603.5,40.8]
[1732886526368,0.27742,3603.3,3603.2,1.18612]
[1732886526573,0.27746,3602.8,3602.7,3.48526]
[1732886526767,0.27746,3602.8,3602.7,48.72526]
[1732886527070,0.27746,3602.8,3602.7,48.4478]
[1732886527676,0.27746,3602.8,3602.7,7.92527]
[1732886527972,1.8826,3603.2,3602.7,7.6478]
[1732886528276,0.27746,3602.8,3602.7,7.6478]
[1732886528675,0.27746,3602.8,3602.7,7.92527]
[1732886529078,0.27746,3602.8,3602.7,7.6478]
[1732886529372,0.27746,3602.8,3602.7,7.92527]
[1732886529679,4.61754419,3603.0,3602.9,0.27745]
[1732886529874,4.34009419,3603.0,3602.9,0.27745]
[1732886530581,4.34009419,3603.0,3602.9,41.07745]
[1732886531076,0.27746,3602.8,3602.7,3.2078]
[1732886531475,0.27746,3602.8,3602.7,3.48527]
[1732886531873,0.27746,3602.8,3602.7,3.2078]
[1732886532276,0.27746,3602.8,3602.7,3.48527]
[1732886532776,0.27746,3602.8,3602.7,3.2078]
[1732886533074,0.27746,3602.8,3602.7,3.48527]
[1732886533280,0.27746,3602.8,3602.7,3.75527]
[1732886533481,0.27746,3602.8,3602.7,3.4778]
[1732886534571,0.27746,3602.8,3602.7,0.27]
[1732886535869,0.27746,3602.9,3602.7,0.27]
[1732886536071,0.27746,3602.9,3602.5,0.6937]
[1732886536072,2.52385956,3602.8,3601.6,3.2078]
[1732886536272,0.27752,3602.2,3602.1,0.27751]
[1732886536477,0.27752,3602.1,3602.0,0.27752]
[1732886536678,0.27752,3602.1,3602.0,41.07752]
[1732886536878,2.52385956,3602.3,3601.9,0.8799]
[1732886537074,2.52385956,3602.3,3602.2,0.27751]
[1732886537279,2.80135956,3602.3,3602.2,0.27751]
[1732886538578,0.2775,3602.4,3602.3,0.27749]
[1732886538971,2.52385956,3602.7,3602.2,3.2078]
[1732886539181,0.27748,3602.6,3602.5,0.27748]
[1732886539380,3.2078,3603.7,3602.5,0.2]
[1732886539576,2.52385956,3603.7,3603.6,0.2774]
[1732886539879,2.52385956,3604.1,3604.0,0.27737]
[1732886540488,2.52385956,3604.1,3603.7,1.8362]
[1732886540784,0.27738,3603.9,3603.8,0.27738]
[1732886540978,0.27737,3604.0,3603.9,0.27737]
[1732886541180,2.52385956,3604.1,3603.7,1.8362]
[1732886541386,6.49978542,3604.4,3603.7,1.8362]
[1732886541580,6.49978542,3604.4,3604.3,3.48514]
[1732886542387,6.49978542,3604.4,3603.5,40.8]
[1732886542585,2.52385956,3603.6,3602.6,6.63429]
[1732886542892,0.27743,3603.2,3603.1,0.27743]
[1732886543082,2.52385956,3603.6,3602.7,40.8]
[1732886543383,2.52385956,3603.6,3603.5,0.27741]
[1732886543579,3.88922956,3604.0,3603.4,3.2078]
[1732886543779,2.52385956,3604.4,3603.8,3.2078]
[1732886543980,0.27734,3604.3,3604.2,0.27735]
[1732886544584,2.52385956,3604.4,3604.3,0.27734]
[1732886545482,2.52385956,3604.8,3604.7,0.27731]
[1732886545780,2.52385956,3604.8,3604.6,3.2078]
[1732886545981,2.52385956,3604.8,3604.3,0.27734]
[1732886546187,0.27735,3604.3,3604.2,0.27735]
[1732886546389,2.52385956,3604.4,3604.0,3.2078]
[1732886546583,2.52385956,3604.4,3604.0,0.27736]
[1732886546789,0.27736,3604.2,3604.0,0.27736]
[1732886547385,2.52385956,3604.4,3604.0,0.27736]
[1732886547886,0.27736,3604.1,3604.0,0.27736]
[1732886548085,2.52385956,3604.4,3603.7,1.7998]
[1732886548279,5.1056,3604.7,3603.7,0.27739]
[1732886548280,0.27738,3603.8,3603.7,0.27739]
[1732886548482,0.27738,3603.8,3603.7,0.58739]
[1732886548680,2.52385956,3603.9,3603.7,0.31]
[1732886548885,2.52385956,3603.9,3603.8,0.27738]
[1732886549083,3.2078,3604.3,3604.2,0.27735]
[1732886549084,2.52385956,3604.3,3604.2,0.27735]
[1732886549285,0.27731,3604.8,3604.6,0.27732]
[1732886549589,0.27731,3604.8,3604.7,0.27731]
[1732886550086,0.27733,3604.5,3604.4,3.2078]
[1732886550293,2.52385956,3604.5,3604.2,0.8761]
[1732886550586,2.52385956,3604.5,3604.2,1.15345]
[1732886550587,0.27734,3604.3,3604.2,1.15345]
[1732886550893,0.27734,3604.4,3604.3,0.27734]
[1732886551191,0.27731,3604.8,3604.7,0.27731]
[1732886551489,2.52385956,3604.9,3604.5,3.2078]
[1732886551685,0.27732,3604.6,3604.5,3.2078]
[1732886551894,0.27732,3604.7,3604.6,0.27732]
[1732886552582,5.41188696,3604.7,3604.6,0.27732]
[1732886552887,0.27732,3604.7,3604.6,0.27732]
[1732886553192,5.41188696,3604.8,3604.2,0.8761]
[1732886553384,0.27734,3604.3,3604.2,1.15345]
[1732886553582,0.27734,3604.3,3604.2,0.8761]
[1732886553786,5.41188696,3604.8,3604.1,3.2078]
[1732886553985,0.27735,3604.3,3604.2,0.27735]
[1732886554185,0.27734,3604.4,3604.3,0.27734]
[1732886556291,10.83624931,3604.9,3604.8,0.27731]
[1732886556292,6.50612975,3604.9,3604.8,0.27731]
[1732886556488,1.56519975,3604.9,3604.8,7.30511]
[1732886556695,7.58256209,3605.1,3605.0,0.27729]
[1732886556989,19.50353845,3605.7,3605.6,0.27724]
[1732886557189,19.50353845,3605.7,3605.6,3.48504]
[1732886557387,19.50353845,3605.7,3605.6,3.64504]
[1732886558989,10.83223156,3605.7,3605.6,3.64504]
[1732886560494,0.9651,3606.2,3606.0,0.27721]
[1732886560791,1.2423,3606.2,3606.1,0.27721]
[1732886561191,2.52385956,3606.6,3606.0,3.2078]
[1732886561397,0.2772,3606.3,3606.2,0.27719]
[1732886562191,0.8946,3606.5,3606.0,3.2078]
[1732886562589,0.27723,3605.9,3605.8,0.27722]
[1732886562897,0.27722,3605.9,3605.8,0.05]
[1732886566994,1.66325,3606.1,3605.4,0.27726]
[1732886567193,0.27726,3605.5,3605.4,0.27726]
[1732886567392,3.44475956,3605.8,3605.1,3.2078]
[1732886567702,0.27727,3605.3,3605.2,0.27727]
[1732886567995,0.27728,3605.2,3605.1,0.27728]
[1732886568193,3.45635956,3605.4,3604.7,3.2078]
[1732886568398,0.2773,3605.0,3604.9,0.27729]
[1732886568988,0.9325,3605.4,3604.7,5.73165956]
[1732886569193,0.9325,3605.4,3605.3,3.48507]
[1732886569397,0.9325,3605.4,3605.3,4.34507]
[1732886570000,0.9325,3605.4,3605.3,45.14507]
[1732886570401,0.27722,3606.0,3605.9,0.27722]
[1732886570597,0.27723,3605.9,3605.8,0.27722]
[1732886570901,0.27724,3605.7,3605.6,0.27724]
[1732886571102,0.27725,3605.6,3605.5,0.27725]
[1732886571401,0.27727,3605.4,3605.3,0.27726]
[1732886571597,0.27728,3605.2,3605.1,0.27728]
[1732886571801,0.69312,3605.7,3604.9,0.27729]
[1732886571802,0.2773,3605.0,3604.9,0.27729]
[1732886572198,0.27729,3605.1,3605.0,0.27728]
[1732886573303,0.9634,3605.2,3604.8,44.0078]
[1732886573502,0.27729,3605.1,3605.0,0.27729]
[1732886575000,1.24068,3605.2,3605.1,0.27728]
[1732886576004,0.9634,3605.2,3605.1,0.27728]
[1732886577600,0.9634,3605.2,3604.8,44.0078]
[1732886577601,0.9422,3605.3,3604.8,44.0078]
[1732886577906,1.21947,3605.3,3605.2,0.27728]
[1732886579002,0.9422,3605.3,3605.2,0.27728]
[1732886579208,3.21687956,3606.2,3605.3,0.69316]
[1732886579407,0.27724,3605.8,3605.7,0.27723]
[1732886579804,0.27725,3605.6,3605.5,0.27724]
[1732886580005,0.27724,3605.8,3605.7,0.27723]
[1732886580201,0.27723,3605.8,3605.7,0.27723]
[1732886580410,0.9404,3606.1,3606.0,0.27721]
[1732886580608,0.9404,3606.1,3606.0,3.48501]
[1732886580999,10.81929282,3608.1,3606.0,3.48501]
[1732886581000,1.16004,3607.0,3606.9,0.27714]
[1732886581202,0.9585,3606.8,3606.2,3.48499]
[1732886581401,2.52385956,3606.6,3606.2,3.2078]
[1732886581602,0.27724,3605.7,3605.6,3.2078]
[1732886581807,2.52385956,3606.2,3605.1,3.2078]
[1732886582008,0.9585,3605.6,3605.1,3.2078]
[1732886582210,0.9585,3605.6,3605.5,0.27725]
[1732886582508,0.9585,3605.6,3605.5,3.69505]
[1732886583005,0.9585,3605.6,3605.5,3.80505]
[1732886583412,0.9585,3605.6,3605.5,3.48505]
[1732886583909,1.23574,3605.6,3605.5,3.48505]
[1732886584412,0.9585,3605.6,3605.5,3.48505]
[1732886585813,0.9585,3605.6,3605.5,4.18505]
[1732886586205,0.8829,3606.2,3605.5,4.18505]
[1732886586403,7.59320357,3606.9,3606.0,3.2078]
[1732886586607,0.27715,3606.8,3606.7,0.27715]
[1732886586809,8.51240357,3606.9,3606.2,3.2078]
[1732886587009,2.52385956,3606.6,3606.2,3.2078]
[1732886587220,0.27719,3606.3,3606.2,3.2078]
[1732886590215,0.9446,3606.5,3605.7,0.27723]
[1732886590418,0.27724,3605.7,3605.6,3.48504]
[1732886591825,0.69302,3606.1,3605.1,4.1187]
[1732886592017,0.27727,3605.4,3605.3,0.27726]
[1732886592919,0.69304,3606.0,3605.1,4.1187]
[1732886593123,7.51925956,3606.2,3605.1,4.8687]
[1732886593317,0.27727,3605.4,3605.3,0.27726]
[1732886593512,0.69308,3605.8,3605.1,4.1187]
[1732886593716,0.9051,3605.7,3605.1,3.2078]
[1732886593916,0.27728,3605.2,3605.1,3.48508]
[1732886594925,0.27728,3605.2,3605.1,3.2078]
[1732886595917,0.9524,3605.4,3604.6,3.2078]
[1732886595918,0.27731,3604.7,3604.6,3.2078]
[1732886596124,0.27735,3604.3,3604.2,0.27735]
[1732886596529,0.27735,3604.3,3604.2,41.07735]
[1732886596721,0.9629,3604.6,3604.2,41.71]
[1732886597118,1.24023,3604.6,3604.5,0.27733]
[1732886597423,0.27733,3604.5,3604.4,3.48513]
[1732886597616,0.27733,3604.5,3604.4,3.2078]
[1732886598017,0.27735,3604.3,3604.2,0.27734]
[1732886598218,0.9629,3604.6,3604.0,3.2078]
[1732886598417,0.27734,3604.4,3604.3,0.27734]
[1732886598822,0.9629,3604.6,3604.1,40.8]
[1732886599018,7.62150607,3605.2,3604.4,3.2078]
[1732886599228,0.2773,3604.9,3604.8,3.4851]
[1732886599424,0.2773,3604.9,3604.8,3.2078]
[1732886599627,2.0591,3605.2,3604.4,3.2078]
[1732886599829,0.27733,3604.5,3604.4,3.2078]
[1732886600423,0.8922,3604.7,3604.1,41.07736]
[1732886600424,0.27735,3604.2,3604.1,41.07736]
[1732886601923,0.9095,3604.6,3604.1,40.8]
[1732886602126,6.80382607,3604.7,3604.6,0.27732]
[1732886602427,6.52650607,3604.7,3604.6,0.27732]
[1732886603133,6.80381607,3604.7,3604.6,40.8]
[1732886603334,6.80381607,3604.7,3604.6,41.07732]
[1732886603630,6.52650607,3604.7,3604.6,41.07732]
[1732886604032,6.80381607,3604.7,3604.6,41.07732]
[1732886604224,6.52650607,3604.7,3604.6,41.07732]
[1732886604425,0.27731,3604.8,3604.7,0.27731]
[1732886604726,0.27732,3604.7,3604.6,0.27732]
[1732886605125,11.45702306,3605.2,3604.4,44.0078]
[1732886605326,0.27733,3604.6,3604.5,0.27733]
[1732886605634,0.27733,3604.5,3604.4,3.2078]
[1732886606533,2.52385956,3604.6,3604.0,0.27736]
[1732886606727,0.27736,3604.1,3604.0,0.27736]
[1732886607426,0.8755,3604.4,3603.9,3.2078]
[1732886607726,0.27737,3604.0,3603.9,3.2078]
[1732886609025,0.27737,3604.0,3603.9,3.48518]
[1732886609432,0.27737,3604.0,3603.9,3.2078]
[1732886610334,0.27737,3604.0,3603.9,3.48518]
[1732886610535,0.8755,3604.4,3603.9,3.2078]
[1732886610735,1.15284,3604.4,3604.3,3.48514]
[1732886611335,0.8755,3604.4,3604.3,3.48514]
[1732886611734,1.15284,3604.4,3604.3,3.48514]
[1732886611937,1.15284,3604.4,3604.3,3.2078]
[1732886613826,1.15284,3604.4,3603.8,0.27738]
[1732886613827,0.8755,3604.4,3603.9,3.2078]
[1732886614229,0.27737,3604.0,3603.9,3.2078]
[1732886614629,0.27737,3604.0,3603.9,3.48518]
[1732886615534,0.27737,3604.0,3603.9,3.2078]
[1732886615736,0.27739,3603.7,3603.6,0.2774]
[1732886617037,1.8963,3604.2,3603.5,41.674]
[1732886617237,0.27739,3603.8,3603.7,0.27738]
[1732886618030,0.2774,3603.7,3603.6,0.2774]
[1732886618439,0.2774,3603.6,3603.5,41.0774]
[1732886618637,0.8854,3603.6,3603.5,41.9374]
[1732886618837,0.8854,3603.6,3603.5,41.0774]
[1732886619139,1.1628,3603.6,3603.5,41.0774]
[1732886619534,0.8854,3603.6,3603.5,41.0774]
[1732886620333,0.27737,3604.0,3603.9,0.27737]
[1732886620545,0.27737,3604.0,3603.9,3.48517]
[1732886621753,0.27737,3604.0,3603.9,3.2078]
[1732886621943,0.27737,3604.0,3603.9,3.48518]
[1732886623152,0.9343,3604.2,3603.9,3.2078]
[1732886623445,0.27736,3604.1,3604.0,0.27736]
[1732886623840,0.27737,3604.1,3604.0,0.27736]
[1732886624940,0.8758,3604.3,3603.9,3.2078]
[1732886625246,0.27743,3603.3,3603.2,0.27742]
[1732886629053,0.27742,3603.4,3603.3,0.27741]
[1732886629352,0.9007,3603.6,3603.3,1.12]
[1732886629555,0.958,3604.0,3603.4,3.2078]